bitfinex/quotes_BTCUSD_20241028
["timestamp","ask_amount","ask_price","bid_price","bid_amount"]
[1730078771161,0.96505153,67807.0,67806.0,0.000822]
[1730078771391,0.82180205,67807.0,67806.0,0.000822]
[1730078771805,0.82180205,67807.0,67806.0,0.003822]
[1730078772684,0.86347815,67807.0,67806.0,0.005822]
[1730078773113,0.86347815,67807.0,67806.0,0.003822]
[1730078773318,0.86347815,67807.0,67806.0,0.000822]
[1730078773577,0.86347815,67807.0,67806.0,0.004822]
[1730078773802,0.86347815,67807.0,67806.0,0.002822]
[1730078774006,0.86347815,67807.0,67806.0,0.000822]
[1730078774225,0.86447815,67807.0,67806.0,0.000822]
[1730078774431,0.86547815,67807.0,67806.0,0.000822]
[1730078774863,0.61547815,67807.0,67806.0,0.000822]
[1730078775118,0.249477,67807.0,67806.0,0.000822]
[1730078777540,0.002,67807.0,67806.0,0.000822]
[1730078777978,0.002,67807.0,67806.0,0.148301]
[1730078778213,0.001,67807.0,67806.0,0.000822]
[1730078778418,0.147474,67809.0,67806.0,0.000822]
[1730078778627,0.001644,67811.0,67806.0,0.000822]
[1730078779092,0.147474,67809.0,67806.0,0.000822]
[1730078779720,0.149113,67811.0,67807.0,0.147477]
[1730078779940,0.149113,67811.0,67806.0,0.000822]
[1730078779941,0.001644,67811.0,67806.0,0.000822]
[1730078780167,0.147472,67810.0,67807.0,0.08]
[1730078780388,0.147472,67810.0,67807.0,0.227476]
[1730078781037,0.147472,67810.0,67807.0,0.08]
[1730078781256,0.001644,67811.0,67808.0,0.147473]
[1730078781724,0.147471,67810.0,67807.0,0.0797241]
[1730078781946,0.148471,67810.0,67807.0,0.0797241]
[1730078782174,0.147471,67810.0,67807.0,0.0797241]
[1730078782390,0.002644,67811.0,67807.0,0.0797241]
[1730078782587,0.147471,67810.0,67807.0,0.0797241]
[1730078783052,0.147471,67810.0,67807.0,0.0817241]
[1730078783263,0.001644,67811.0,67809.0,0.147472]
[1730078783918,0.001644,67811.0,67807.0,0.3766781]
[1730078784137,0.001644,67811.0,67807.0,0.3796781]
[1730078784347,0.001644,67811.0,67807.0,0.3766781]
[1730078784551,0.001644,67811.0,67808.0,0.147474]
[1730078784754,0.001644,67811.0,67809.0,0.003]
[1730078785181,0.001644,67811.0,67809.0,0.002]
[1730078785425,0.149113,67811.0,67809.0,0.002]
[1730078785653,0.149113,67811.0,67808.0,0.147474]
[1730078786084,0.149113,67811.0,67809.0,0.002]
[1730078786297,0.001644,67811.0,67809.0,0.002]
[1730078786514,0.001644,67811.0,67807.0,0.2302001]
[1730078786515,0.14747,67810.0,67807.0,0.2302001]
[1730078786724,0.147471,67810.0,67807.0,0.0797241]
[1730078786952,0.147471,67810.0,67809.0,0.003]
[1730078787769,0.147471,67810.0,67808.0,0.002]
[1730078787974,0.001644,67811.0,67808.0,0.002]
[1730078788183,0.14747,67810.0,67809.0,0.003]
[1730078788612,0.001644,67811.0,67809.0,0.003]
[1730078789058,0.001644,67811.0,67810.0,0.14747]
[1730078790887,0.001644,67811.0,67810.0,0.15047]
[1730078791516,0.001644,67811.0,67810.0,0.003]
[1730078791957,0.149112,67811.0,67810.0,0.003]
[1730078792176,0.149112,67811.0,67810.0,0.005]
[1730078793277,0.001644,67811.0,67810.0,0.005]
[1730078793718,0.149112,67811.0,67810.0,0.005]
[1730078796028,0.29961581,67811.0,67810.0,0.005]
[1730078796693,0.29961581,67811.0,67810.0,0.002]
[1730078797556,0.30161581,67811.0,67810.0,0.002]
[1730078797761,0.147475,67808.0,67807.0,0.000822]
[1730078797970,0.23969738,67808.0,67807.0,0.000822]
[1730078799600,0.23969738,67808.0,67807.0,0.001822]
[1730078799755,0.23969738,67808.0,67807.0,0.002822]
[1730078802820,0.39020119,67808.0,67807.0,0.002822]
[1730078803467,0.49020119,67808.0,67807.0,0.002822]
[1730078820316,0.49184519,67808.0,67807.0,0.002822]
[1730078824091,0.001644,67808.0,67807.0,0.002822]
[1730078824320,0.001644,67808.0,67807.0,0.150299]
[1730078829487,0.001644,67808.0,67807.0,0.15491479]
[1730078829921,0.001644,67808.0,67807.0,0.15391479]
[1730078830355,0.001644,67808.0,67807.0,0.150299]
[1730078830597,0.001644,67808.0,67807.0,0.15491479]
[1730078830816,0.001644,67808.0,67807.0,0.15591479]
[1730078831045,0.001644,67808.0,67807.0,0.15291479]
[1730078831308,0.001644,67808.0,67807.0,0.151299]
[1730078831548,0.001644,67808.0,67807.0,0.15886392]
[1730078831766,0.001644,67808.0,67807.0,0.23611473]
[1730078832637,0.001644,67808.0,67807.0,0.23811473]
[1730078833964,0.001644,67808.0,67807.0,0.233499]
[1730078834626,0.001644,67808.0,67807.0,0.086022]
[1730078834845,0.001644,67808.0,67807.0,0.005822]
[1730078834846,0.36896848,67808.0,67807.0,0.005822]
[1730078835079,0.149119,67808.0,67807.0,0.005822]
[1730078835725,0.149119,67808.0,67807.0,0.003822]
[1730078835930,0.149119,67808.0,67807.0,0.002822]
[1730078836135,0.149119,67808.0,67807.0,0.005822]
[1730078836338,0.149119,67808.0,67807.0,0.003822]
[1730078836541,0.149119,67808.0,67807.0,0.000822]
[1730078836743,0.149119,67808.0,67807.0,0.005822]
[1730078842317,0.149119,67808.0,67807.0,0.003822]
[1730078842736,0.149119,67808.0,67807.0,0.001822]
[1730078842943,0.149119,67808.0,67807.0,0.003822]
[1730078843336,0.149119,67808.0,67807.0,0.000822]
[1730078843551,0.149119,67808.0,67807.0,0.001822]
[1730078845340,0.49702281,67808.0,67807.0,0.001822]
[1730078845588,0.57452281,67808.0,67807.0,0.001822]
[1730078846749,0.57452281,67808.0,67807.0,0.000822]
[1730078846981,0.57952281,67808.0,67807.0,0.000822]
[1730078847213,0.57452281,67808.0,67807.0,0.000822]
[1730078847453,0.57652281,67808.0,67807.0,0.000822]
[1730078848625,0.57952281,67808.0,67807.0,0.000822]
[1730078849077,0.57852281,67808.0,67807.0,0.000822]
[1730078849299,0.58152281,67808.0,67807.0,0.000822]
[1730078849998,0.249119,67808.0,67807.0,0.000822]
[1730078850237,0.258119,67808.0,67807.0,0.000822]
[1730078850499,0.254119,67808.0,67807.0,0.000822]
[1730078850970,0.258119,67808.0,67807.0,0.000822]
[1730078851635,0.253119,67808.0,67807.0,0.000822]
[1730078851844,0.259119,67808.0,67807.0,0.001822]
[1730078852067,0.255119,67808.0,67807.0,0.001822]
[1730078852495,0.260119,67808.0,67807.0,0.001822]
[1730078857684,0.254119,67808.0,67807.0,0.000822]
[1730078857897,0.258119,67808.0,67807.0,0.000822]
[1730078858150,0.258119,67808.0,67807.0,0.148299]
[1730078858151,0.010644,67808.0,67807.0,0.148299]
[1730078858367,0.010644,67808.0,67807.0,0.325799]
[1730078858586,0.006644,67808.0,67807.0,0.325799]
[1730078859012,0.001644,67808.0,67807.0,0.325799]
[1730078859508,0.004644,67808.0,67807.0,0.325799]
[1730078859730,0.001644,67808.0,67807.0,0.325799]
[1730078859947,0.001644,67808.0,67807.0,0.328799]
[1730078860865,0.001644,67808.0,67807.0,0.330799]
[1730078861956,0.001644,67808.0,67807.0,0.33541474]
[1730078863097,0.001644,67808.0,67807.0,0.49091855]
[1730078863340,0.001644,67808.0,67807.0,0.50091855]
[1730078864005,0.001644,67808.0,67807.0,0.49891855]
[1730078864424,0.001644,67808.0,67807.0,0.50091855]
[1730078864639,0.001644,67808.0,67807.0,0.33541474]
[1730078864877,0.001644,67808.0,67807.0,0.08823774]
[1730078865083,0.001644,67808.0,67807.0,0.002822]
[1730078865324,0.149119,67808.0,67807.0,0.004822]
[1730078865539,0.149119,67808.0,67807.0,0.000822]
[1730078866017,0.149119,67808.0,67807.0,0.002822]
[1730078866234,0.149119,67808.0,67807.0,0.000822]
[1730078866455,0.149119,67808.0,67807.0,0.002822]
[1730078866456,0.24134138,67808.0,67807.0,0.002822]
[1730078866677,0.149119,67808.0,67807.0,0.002822]
[1730078867083,0.149119,67808.0,67807.0,0.004822]
[1730078867557,0.149119,67808.0,67807.0,0.002822]
[1730078867777,0.149119,67808.0,67807.0,0.000822]
[1730078868199,0.149119,67808.0,67807.0,0.001822]
[1730078868413,0.149119,67808.0,67807.0,0.000822]
[1730078868880,0.149119,67808.0,67807.0,0.001822]
[1730078873326,0.001644,67808.0,67807.0,0.001822]
[1730078873532,0.149119,67808.0,67807.0,0.001822]
[1730078873737,0.001644,67808.0,67807.0,0.001822]
[1730078875884,0.149119,67808.0,67807.0,0.001822]
[1730078879802,0.001644,67808.0,67807.0,0.001822]
[1730078880007,0.001644,67808.0,67807.0,0.149299]
[1730078881029,0.001644,67808.0,67807.0,0.22911476]
[1730078887898,0.001644,67808.0,67807.0,0.22811476]
[1730078888316,0.001644,67808.0,67807.0,0.23011476]
[1730078888532,0.001644,67808.0,67807.0,0.22811476]
[1730078888958,0.001644,67808.0,67807.0,0.23011476]
[1730078889167,0.001644,67808.0,67807.0,0.23211476]
[1730078889793,0.001644,67808.0,67807.0,0.23011476]
[1730078890218,0.001644,67808.0,67807.0,0.23211476]
[1730078892866,0.001644,67808.0,67807.0,0.23506396]
[1730078893285,0.001644,67808.0,67807.0,0.23211476]
[1730078898249,0.001644,67808.0,67807.0,0.23506398]
[1730078898472,0.001644,67808.0,67807.0,0.24544812]
[1730078898690,0.001644,67808.0,67807.0,0.334699]
[1730078899111,0.001644,67808.0,67807.0,0.336699]
[1730078899769,0.001644,67808.0,67807.0,0.34131437]
[1730078899988,0.001644,67808.0,67807.0,0.38555534]
[1730078900429,0.001644,67811.0,67810.0,0.24669238]
[1730078900656,0.001644,67811.0,67810.0,0.57961156]
[1730078901488,0.001644,67811.0,67810.0,0.58161156]
[1730078901695,0.001644,67811.0,67810.0,0.58361156]
[1730078905398,0.001644,67811.0,67810.0,0.58361148]
[1730078908995,0.001644,67811.0,67810.0,0.4913891]
[1730078909209,0.001644,67811.0,67810.0,0.58361148]
[1730078912296,0.001644,67811.0,67810.0,0.58561148]
[1730078914657,0.001644,67811.0,67810.0,0.58361148]
[1730078915490,0.001644,67811.0,67810.0,0.57961148]
[1730078915699,0.001644,67811.0,67810.0,0.58161148]
[1730078916672,0.001644,67811.0,67810.0,0.58361148]
[1730078916878,0.001644,67811.0,67810.0,0.58161148]
[1730078917512,0.001644,67811.0,67810.0,0.58361148]
[1730078921118,0.001644,67811.0,67810.0,0.57899619]
[1730078921327,0.001644,67811.0,67810.0,0.58361144]
[1730078921765,0.001644,67811.0,67810.0,0.33588525]
[1730078921939,0.247112,67811.0,67810.0,0.00861525]
[1730078922164,0.325412,67811.0,67810.0,0.004]
[1730078923030,0.47591581,67811.0,67810.0,0.002]
[1730078923231,0.57591581,67811.0,67810.0,0.002]
[1730078923487,0.57591581,67811.0,67810.0,0.004]
[1730078923898,0.1,67810.0,67807.0,0.04504223]
[1730078924106,0.23969738,67808.0,67807.0,0.04504223]
[1730078924310,0.33599738,67808.0,67807.0,0.04504223]
[1730078925567,0.33899738,67808.0,67807.0,0.04504223]
[1730078926508,0.33899738,67808.0,67807.0,0.000822]
[1730078926940,0.34199738,67808.0,67807.0,0.000822]
[1730078930272,0.249775,67808.0,67807.0,0.000822]
[1730078934551,0.006,67808.0,67807.0,0.000822]
[1730078934750,0.153475,67808.0,67807.0,0.000822]
[1730078934909,0.006,67808.0,67807.0,0.000822]
[1730078935544,0.006,67808.0,67807.0,0.148299]
[1730078935764,0.003,67808.0,67807.0,0.148299]
[1730078936171,0.003,67808.0,67807.0,0.001822]
[1730078936621,0.001644,67808.0,67807.0,0.001822]
[1730078936831,0.001644,67808.0,67807.0,0.150299]
[1730078937405,0.001644,67808.0,67807.0,0.325399]
[1730078939479,0.001644,67808.0,67807.0,0.324399]
[1730078939888,0.001644,67808.0,67807.0,0.326399]
[1730078940298,0.001644,67808.0,67807.0,0.324399]
[1730078940499,0.001644,67808.0,67807.0,0.323399]
[1730078940870,0.001644,67808.0,67807.0,0.327399]
[1730078941019,0.001644,67808.0,67807.0,0.325399]
[1730078941407,0.001644,67808.0,67807.0,0.327399]
[1730078941837,0.001644,67808.0,67807.0,0.48490281]
[1730078942052,0.001644,67808.0,67807.0,0.48951833]
[1730078942971,0.001644,67808.0,67807.0,0.49951833]
[1730078945150,0.001644,67808.0,67807.0,0.49751833]
[1730078945579,0.001644,67808.0,67807.0,0.49951833]
[1730078946620,0.001644,67808.0,67807.0,0.4995177]
[1730078947242,0.001644,67808.0,67807.0,0.4975177]
[1730078950312,0.001644,67808.0,67807.0,0.4995177]
[1730078954124,0.001644,67808.0,67807.0,0.49490281]
[1730078954264,0.001644,67808.0,67807.0,0.4995177]
[1730078957954,0.001644,67808.0,67807.0,0.49490281]
[1730078958166,0.001644,67808.0,67807.0,0.4995178]
[1730078961882,0.001644,67808.0,67807.0,0.49490281]
[1730078962083,0.001644,67808.0,67807.0,0.49951786]
[1730078962714,0.001644,67808.0,67807.0,0.49551786]
[1730078963169,0.001644,67808.0,67807.0,0.49951786]
[1730078963369,0.001644,67808.0,67807.0,0.49751786]
[1730078963749,0.001644,67808.0,67807.0,0.49951786]
[1730078963967,0.001644,67808.0,67807.0,0.49751786]
[1730078965202,0.001644,67808.0,67807.0,0.49551786]
[1730078965410,0.001644,67808.0,67807.0,0.49751786]
[1730078965613,0.001644,67808.0,67807.0,0.49751777]
[1730078966026,0.001644,67808.0,67807.0,0.49951777]
[1730078969554,0.001644,67808.0,67807.0,0.49490281]
[1730078969767,0.001644,67808.0,67807.0,0.49951782]
[1730078969957,0.001644,67808.0,67807.0,0.49751782]
[1730078971440,0.001644,67808.0,67807.0,0.16191401]
[1730078971585,0.001644,67808.0,67807.0,0.15691401]
[1730078972221,0.001644,67808.0,67807.0,0.15491401]
[1730078972388,0.001644,67808.0,67807.0,0.15291401]
[1730078972594,0.001644,67808.0,67807.0,0.15691401]
[1730078973069,0.001644,67808.0,67807.0,0.15491401]
[1730078973406,0.001644,67808.0,67807.0,0.152299]
[1730078973812,0.001644,67808.0,67807.0,0.150299]
[1730078974012,0.001644,67808.0,67807.0,0.15491464]
[1730078974395,0.001644,67808.0,67807.0,0.15691464]
[1730078975154,0.001644,67808.0,67807.0,0.152299]
[1730078975567,0.001644,67808.0,67807.0,0.15691476]
[1730078975771,0.001644,67808.0,67807.0,0.152299]
[1730078976093,0.001644,67808.0,67807.0,0.15691461]
[1730078977200,0.001644,67808.0,67807.0,0.152299]
[1730078977415,0.001644,67808.0,67807.0,0.1569145]
[1730078977634,0.001644,67808.0,67807.0,0.15691445]
[1730078977951,0.001644,67808.0,67807.0,0.15491445]
[1730078978386,0.001644,67808.0,67807.0,0.15691445]
[1730078978590,0.001644,67808.0,67807.0,0.15491445]
[1730078979016,0.001644,67808.0,67807.0,0.15691445]
[1730078985013,0.001644,67808.0,67807.0,0.152299]
[1730078985187,0.001644,67808.0,67807.0,0.15691446]
[1730078989131,0.001644,67808.0,67807.0,0.152299]
[1730078989350,0.001644,67808.0,67807.0,0.15691443]
[1730078989560,0.001644,67808.0,67807.0,0.15691441]
[1730078990621,0.001644,67808.0,67807.0,0.152299]
[1730078990823,0.001644,67808.0,67807.0,0.15691435]
[1730078993489,0.001644,67808.0,67807.0,0.15691439]
[1730078994663,0.001644,67808.0,67807.0,0.35959953]
[1730078994882,0.001644,67808.0,67807.0,0.66825872]
[1730078995087,0.001644,67808.0,67807.0,0.57979457]
[1730078995299,0.001644,67808.0,67807.0,0.66825872]
[1730078995506,0.001644,67808.0,67807.0,0.57979457]
[1730078995924,0.001644,67808.0,67807.0,0.66825872]
[1730078996800,0.001644,67808.0,67807.0,0.66825847]
[1730078998807,0.001644,67808.0,67807.0,0.57979518]
[1730078999215,0.001644,67808.0,67807.0,0.66825847]
[1730079000456,0.001644,67808.0,67807.0,0.6903743]
[1730079000828,0.001644,67808.0,67807.0,0.66826472]
[1730079001097,0.001644,67808.0,67807.0,0.66364933]
[1730079001286,0.001644,67808.0,67807.0,0.66826445]
[1730079001626,0.001644,67808.0,67807.0,0.66826444]
[1730079001852,0.001644,67808.0,67807.0,0.5797949]
[1730079002503,0.001644,67808.0,67807.0,0.66829371]
[1730079002722,0.001644,67808.0,67807.0,0.66829703]
[1730079004509,0.001644,67808.0,67807.0,0.65872009]
[1730079005181,0.001644,67808.0,67807.0,0.65672009]
[1730079005582,0.001644,67808.0,67807.0,0.65872009]
[1730079005718,0.001644,67808.0,67807.0,0.65672009]
[1730079006338,0.001644,67808.0,67807.0,0.65772009]
[1730079006804,0.001644,67808.0,67807.0,0.65672009]
[1730079007205,0.001644,67808.0,67807.0,0.65772009]
[1730079008490,0.001644,67808.0,67807.0,0.6577198]
[1730079008898,0.001644,67808.0,67807.0,0.6557198]
[1730079009316,0.001644,67808.0,67807.0,0.4847198]
[1730079009526,0.001644,67808.0,67807.0,0.55106743]
[1730079009969,0.001644,67808.0,67807.0,0.35096763]
[1730079010193,0.001644,67808.0,67807.0,0.32141763]
[1730079010338,0.075044,67808.0,67807.0,0.38676526]
[1730079010545,0.075044,67808.0,67807.0,0.5480457]
[1730079010769,0.075044,67808.0,67807.0,0.48369765]
[1730079010973,0.075044,67808.0,67807.0,0.57215845]
[1730079011238,0.075044,67808.0,67807.0,0.65989765]
[1730079011758,0.075044,67808.0,67807.0,0.65989154]
[1730079011974,0.075044,67808.0,67807.0,0.74835292]
[1730079012457,0.075044,67808.0,67807.0,0.75035318]
[1730079013098,0.075044,67808.0,67807.0,0.74835318]
[1730079013301,0.075044,67808.0,67807.0,0.6598918]
[1730079013516,0.075044,67808.0,67807.0,0.74835318]
[1730079014100,0.075044,67808.0,67807.0,0.6598918]
[1730079015946,0.075044,67808.0,67807.0,0.6618918]
[1730079016205,0.075044,67808.0,67807.0,0.76585432]
[1730079016410,0.075044,67808.0,67807.0,0.65989171]
[1730079016725,0.075044,67808.0,67807.0,0.59426802]
[1730079017672,0.075044,67808.0,67807.0,0.6040926]
[1730079020187,0.075044,67808.0,67807.0,0.60409266]
[1730079020878,0.075044,67808.0,67807.0,0.49351635]
[1730079021512,0.075044,67808.0,67807.0,0.49551635]
[1730079021697,0.075044,67808.0,67807.0,0.49351635]
[1730079022397,0.075044,67808.0,67807.0,0.69634624]
[1730079022593,0.075044,67808.0,67807.0,0.69634668]
[1730079023765,0.075044,67808.0,67807.0,0.58573873]
[1730079023975,0.075044,67808.0,67807.0,0.49351635]
[1730079024211,0.075044,67808.0,67807.0,0.32801254]
[1730079024438,0.075044,67808.0,67807.0,0.2089855]
[1730079024657,0.075044,67808.0,67807.0,0.16473911]
[1730079025130,0.075044,67808.0,67807.0,0.01726211]
[1730079025131,0.222519,67808.0,67807.0,0.01726211]
[1730079025334,0.222519,67808.0,67807.0,0.01164658]
[1730079025546,0.222519,67808.0,67807.0,0.01064658]
[1730079025755,0.222519,67808.0,67807.0,0.000822]
[1730079025973,0.222519,67808.0,67807.0,0.001822]
[1730079026401,0.075044,67808.0,67807.0,0.002822]
[1730079026614,0.222519,67808.0,67807.0,0.002822]
[1730079026821,0.222519,67808.0,67807.0,0.01071068]
[1730079027528,0.075044,67808.0,67807.0,0.01071068]
[1730079027737,0.222519,67808.0,67807.0,0.01171068]
[1730079027979,0.31474138,67808.0,67807.0,0.01171068]
[1730079028209,0.31474138,67808.0,67807.0,0.001822]
[1730079028427,0.31474138,67808.0,67807.0,0.002822]
[1730079028633,0.49194138,67808.0,67807.0,0.002822]
[1730079029540,0.49194138,67808.0,67807.0,0.001822]
[1730079029541,0.59194138,67808.0,67807.0,0.001822]
[1730079029927,0.59494138,67808.0,67807.0,0.001822]
[1730079030385,0.74544519,67808.0,67807.0,0.001822]
[1730079031042,0.74544519,67808.0,67807.0,0.000822]
[1730079031516,0.74844519,67808.0,67807.0,0.000822]
[1730079036031,0.74844519,67808.0,67797.0,0.147498]
[1730079036032,0.147491,67801.0,67797.0,0.147498]
[1730079036251,0.09222238,67805.0,67785.0,1.55747186]
[1730079036455,0.147492,67801.0,67798.0,0.01001861]
[1730079036662,0.147492,67801.0,67796.0,0.1475]
[1730079036867,0.147492,67801.0,67799.0,0.01000506]
[1730079037067,0.147492,67801.0,67796.0,0.1475]
[1730079037281,0.147492,67801.0,67800.0,0.00999152]
[1730079037502,0.147492,67801.0,67794.0,0.295011]
[1730079037959,0.147493,67800.0,67795.0,0.01005924]
[1730079038167,0.147493,67800.0,67796.0,0.147501]
[1730079038372,0.147493,67800.0,67799.0,0.001]
[1730079038767,0.147493,67800.0,67799.0,0.01001858]
[1730079039045,0.147493,67800.0,67796.0,0.147501]
[1730079039271,0.147493,67800.0,67799.0,0.01001858]
[1730079039503,0.147493,67800.0,67795.0,0.148503]
[1730079039725,0.0995,67799.0,67795.0,0.001]
[1730079039945,0.246995,67799.0,67796.0,0.01005922]
[1730079040160,0.33921738,67799.0,67796.0,0.01005922]
[1730079040370,0.33921738,67799.0,67794.0,0.147505]
[1730079040605,0.33921738,67799.0,67794.0,0.000822]
[1730079040821,0.19172238,67799.0,67795.0,0.01007276]
[1730079041027,0.1475,67797.0,67795.0,0.01007276]
[1730079041246,0.23972338,67796.0,67795.0,0.01007276]
[1730079041906,0.147503,67795.0,67794.0,0.000822]
[1730079042553,0.28144879,67795.0,67794.0,0.000822]
[1730079043468,0.45294879,67795.0,67794.0,0.000822]
[1730079043933,0.55294879,67795.0,67794.0,0.000822]
[1730079044404,0.66784505,67795.0,67794.0,0.000822]
[1730079044627,0.66984505,67795.0,67794.0,0.000822]
[1730079045316,0.55594879,67795.0,67794.0,0.000822]
[1730079045498,0.55894879,67795.0,67794.0,0.000822]
[1730079046260,0.106,67795.0,67794.0,0.000822]
[1730079046467,0.006,67795.0,67794.0,0.000822]
[1730079047284,0.147501,67796.0,67794.0,0.01094903]
[1730079047492,0.294989,67799.0,67794.0,0.000822]
[1730079047683,0.147501,67796.0,67795.0,0.01011348]
[1730079049477,0.147501,67796.0,67795.0,0.01111348]
[1730079050348,0.147501,67796.0,67795.0,0.01211348]
[1730079050641,0.294989,67799.0,67795.0,0.01211348]
[1730079050838,0.147501,67796.0,67795.0,0.002]
[1730079051491,0.294999,67797.0,67794.0,0.000822]
[1730079051716,0.147503,67795.0,67794.0,0.000822]
[1730079051939,0.147501,67796.0,67794.0,0.000822]
[1730079052154,0.001646,67795.0,67794.0,0.295831]
[1730079052369,0.001646,67795.0,67794.0,0.148327]
[1730079053485,0.001646,67795.0,67794.0,0.000822]
[1730079053486,0.149149,67795.0,67794.0,0.000822]
[1730079054145,0.149149,67795.0,67794.0,0.001]
[1730079054643,0.149149,67795.0,67794.0,0.002]
[1730079055520,0.149149,67795.0,67794.0,0.001]
[1730079055965,0.001646,67795.0,67794.0,0.001]
[1730079056192,0.14915,67795.0,67790.0,0.147513]
[1730079056406,0.147505,67794.0,67790.0,0.147513]
[1730079057751,0.147505,67794.0,67790.0,0.149513]
[1730079058443,0.001646,67795.0,67791.0,0.01018285]
[1730079058668,0.001646,67795.0,67792.0,0.295019]
[1730079058890,0.001646,67795.0,67792.0,0.147509]
[1730079059118,0.001646,67795.0,67793.0,0.01015576]
[1730079059343,0.001646,67795.0,67794.0,0.147505]
[1730079059572,0.001646,67795.0,67793.0,0.147507]
[1730079059785,0.001646,67795.0,67794.0,0.01014221]
[1730079060445,0.001646,67795.0,67794.0,0.15764721]
[1730079060663,0.001646,67795.0,67794.0,0.147505]
[1730079060883,0.001646,67795.0,67794.0,0.15764721]
[1730079061765,0.001646,67795.0,67794.0,0.23264721]
[1730079061996,0.001646,67795.0,67794.0,0.08514221]
[1730079062220,0.001646,67795.0,67794.0,0.23264721]
[1730079063058,0.001646,67795.0,67794.0,0.15764721]
[1730079063494,0.001646,67795.0,67794.0,0.01014221]
[1730079063699,0.001646,67795.0,67793.0,0.147506]
[1730079063908,0.001646,67795.0,67794.0,0.01014806]
[1730079064341,0.149149,67795.0,67794.0,0.01014806]
[1730079064620,0.149149,67795.0,67794.0,0.01097106]
[1730079064835,0.149149,67795.0,67794.0,0.000823]
[1730079065056,0.149149,67795.0,67794.0,0.01097106]
[1730079065278,0.149149,67795.0,67794.0,0.000823]
[1730079065500,0.149149,67795.0,67794.0,0.01097106]
[1730079065723,0.001646,67795.0,67794.0,0.01097106]
[1730079065960,0.149149,67795.0,67794.0,0.01097106]
[1730079067038,0.001646,67795.0,67794.0,0.01097106]
[1730079067264,0.149149,67795.0,67794.0,0.01097106]
[1730079067931,0.149149,67795.0,67794.0,0.01197106]
[1730079068154,0.149149,67795.0,67794.0,0.01297106]
[1730079069262,0.149149,67795.0,67794.0,0.01197106]
[1730079069469,0.001646,67795.0,67794.0,0.01197106]
[1730079069764,0.001646,67795.0,67794.0,0.01297106]
[1730079070209,0.001646,67795.0,67794.0,0.16047606]
[1730079074627,0.001646,67795.0,67794.0,0.25507606]
[1730079075974,0.001646,67795.0,67794.0,0.25307606]
[1730079076237,0.001646,67795.0,67794.0,0.25407606]
[1730079076443,0.001646,67795.0,67794.0,0.25507606]
[1730079076655,0.001646,67795.0,67794.0,0.25407606]
[1730079077085,0.001646,67795.0,67794.0,0.25507606]
[1730079077954,0.001646,67795.0,67794.0,0.16047606]
[1730079081072,0.001646,67795.0,67794.0,0.1650926]
[1730079083868,0.001646,67795.0,67794.0,0.33807606]
[1730079084115,0.001646,67795.0,67794.0,0.49819636]
[1730079084560,0.001646,67795.0,67794.0,0.72802565]
[1730079084978,0.001646,67795.0,67794.0,0.72802556]
[1730079085207,0.001646,67795.0,67794.0,0.49819636]
[1730079085556,0.001646,67795.0,67794.0,0.72800413]
[1730079085885,0.001646,67795.0,67794.0,0.49819636]
[1730079086113,0.001646,67795.0,67794.0,0.66159279]
[1730079086330,0.001646,67795.0,67794.0,0.72797827]
[1730079086535,0.001646,67795.0,67794.0,0.72795578]
[1730079086966,0.001646,67795.0,67794.0,0.49819636]
[1730079087176,0.001646,67795.0,67794.0,0.56458184]
[1730079087419,0.001646,67795.0,67794.0,0.54244873]
[1730079087645,0.001646,67795.0,67794.0,0.54244823]
[1730079087894,0.001646,67795.0,67794.0,0.49357987]
[1730079088149,0.001646,67795.0,67794.0,0.67615989]
[1730079088376,0.001646,67795.0,67794.0,0.67815989]
[1730079089497,0.001646,67795.0,67794.0,0.67615989]
[1730079090161,0.001646,67795.0,67794.0,0.73790108]
[1730079090613,0.001646,67795.0,67794.0,0.73690108]
[1730079091271,0.001646,67795.0,67794.0,0.57355335]
[1730079091486,0.001646,67795.0,67794.0,0.56893718]
[1730079091697,0.001646,67795.0,67794.0,0.73222244]
[1730079092174,0.001646,67795.0,67794.0,0.57455319]
[1730079092392,0.001646,67795.0,67794.0,0.51281181]
[1730079092617,0.001646,67795.0,67794.0,0.76353938]
[1730079093066,0.001646,67795.0,67794.0,0.76553938]
[1730079093500,0.001646,67795.0,67794.0,0.78865409]
[1730079093733,0.001646,67795.0,67794.0,0.78765409]
[1730079093968,0.001646,67795.0,67794.0,0.78865409]
[1730079094181,0.001646,67795.0,67794.0,0.76651024]
[1730079094402,0.001646,67795.0,67794.0,0.78865409]
[1730079094630,0.001646,67795.0,67794.0,0.67808055]
[1730079094850,0.001646,67795.0,67794.0,0.76650914]
[1730079095070,0.001646,67795.0,67794.0,0.76650892]
[1730079095292,0.001646,67795.0,67794.0,0.67608055]
[1730079095507,0.001646,67795.0,67794.0,0.76450892]
[1730079095739,0.001646,67795.0,67794.0,0.67608038]
[1730079096217,0.001646,67795.0,67794.0,0.76450117]
[1730079096638,0.001646,67795.0,67794.0,0.67608038]
[1730079096848,0.001646,67795.0,67794.0,0.76650117]
[1730079097055,0.001646,67795.0,67794.0,0.76640342]
[1730079097330,0.001646,67795.0,67794.0,0.67799231]
[1730079097556,0.001646,67795.0,67794.0,0.76640342]
[1730079098241,0.001646,67795.0,67794.0,0.76178765]
[1730079100588,0.001646,67795.0,67794.0,0.67337654]
[1730079101255,0.001646,67795.0,67794.0,0.76174537]
[1730079101669,0.001646,67795.0,67794.0,0.75712937]
[1730079101905,0.001646,67795.0,67794.0,0.75705101]
[1730079102820,0.001646,67795.0,67794.0,0.66868229]
[1730079103034,0.001646,67795.0,67794.0,0.7570451]
[1730079104170,0.001646,67795.0,67794.0,0.66868229]
[1730079104389,0.001646,67795.0,67794.0,0.77914319]
[1730079105276,0.001646,67795.0,67794.0,0.7837586]
[1730079105496,0.001646,67795.0,67794.0,0.6732977]
[1730079106125,0.001646,67795.0,67794.0,0.66868229]
[1730079106637,0.001646,67795.0,67794.0,0.66861438]
[1730079106847,0.001646,67795.0,67794.0,0.76861438]